bitfinex/quotes_ETHUSD_20241231
["timestamp","ask_amount","ask_price","bid_price","bid_amount"]
[1735670747689,0.8144,3366.0,3365.2,3.03428662]
[1735670748010,0.8144,3366.0,3365.2,3.41616528]
[1735670748546,0.2778235,3365.9,3365.2,3.41616528]
[1735670749002,0.8144,3366.0,3365.2,0.44460528]
[1735670749211,0.8144,3366.0,3365.2,0.06272662]
[1735670749741,0.8144,3366.0,3365.4,2.97139]
[1735670750228,0.27789372,3365.9,3365.5,0.06259999]
[1735670750428,0.8144,3365.7,3365.5,0.06259999]
[1735670750610,0.8144,3365.7,3364.6,0.7845]
[1735670750783,0.89913841,3365.6,3364.6,0.7845]
[1735670750984,0.8144,3365.5,3364.7,0.06098447]
[1735670751189,2.96354322,3365.5,3364.7,0.06098447]
[1735670751387,0.27789372,3365.4,3364.5,2.97216]
[1735670751609,0.27789372,3365.4,3364.8,0.06094224]
[1735670751834,0.27789372,3365.4,3364.5,2.97216]
[1735670752031,0.27789372,3365.3,3364.9,0.06090002]
[1735670752319,0.27789372,3365.3,3365.0,0.06218318]
[1735670752535,2.96354322,3365.5,3364.6,0.375666]
[1735670752741,2.96354322,3365.5,3365.1,0.06214096]
[1735670752938,2.96354322,3365.5,3364.5,2.97216]
[1735670753262,0.27803899,3365.4,3365.2,0.06091685]
[1735670753390,0.8144,3365.3,3364.3,0.7845]
[1735670753597,0.8144,3364.9,3364.1,2.97255]
[1735670754190,0.27813853,3364.8,3364.1,2.97255]
[1735670754386,0.55617752,3364.8,3364.1,3.648255]
[1735670754788,0.27803899,3364.7,3364.2,3.0]
[1735670755421,0.27803899,3364.8,3364.2,3.0]
[1735670756006,0.8193,3364.7,3363.6,2.97296]
[1735670756559,0.27803899,3364.6,3363.6,2.97296]
[1735670756764,0.55616651,3364.6,3363.7,3.297296]
[1735670756913,0.55616651,3364.6,3363.7,0.297296]
[1735670757113,2.90394322,3364.5,3363.7,0.297296]
[1735670757318,3.46010973,3364.5,3363.7,3.297296]
[1735670757501,2.70530973,3364.5,3363.7,3.270196]
[1735670757703,1.03292752,3364.4,3363.7,3.270196]
[1735670757909,1.31096651,3364.4,3363.7,3.270196]
[1735670758142,1.31096651,3364.4,3363.8,0.3270196]
[1735670758364,0.7548,3364.4,3363.8,0.3270196]
[1735670758637,0.7548,3364.4,3363.9,3.0]
[1735670761572,0.7548,3365.2,3364.3,2.97237]
[1735670761771,1.35540838,3365.2,3364.1,2.97252]
[1735670761974,0.27763967,3365.1,3364.2,2.97246]
[1735670762144,0.55527265,3365.1,3364.2,2.97246]
[1735670762963,0.55527265,3365.0,3364.2,2.97246]
[1735670763161,0.7548,3364.9,3364.1,3.0]
[1735670763367,1.03243298,3364.9,3364.1,3.0]
[1735670763737,0.7548,3364.9,3363.9,2.97272]
[1735670763972,0.7548,3364.9,3363.9,3.68065396]
[1735670764138,2.14914322,3364.8,3363.9,0.70793396]
[1735670764476,0.7548,3364.4,3363.3,3.75283]
[1735670764662,0.7548,3364.4,3363.3,0.7796]
[1735670764863,0.7548,3364.4,3363.3,6.75285]
[1735670765181,0.27770546,3364.3,3363.3,6.75285]
[1735670765391,0.7548,3364.2,3363.3,6.75285]
[1735670765550,0.7548,3364.2,3363.5,3.0]
[1735670765951,0.7548,3364.2,3363.4,0.675285]
[1735670766164,0.7548,3364.5,3363.7,2.97291]
[1735670766676,0.7548,3364.5,3363.8,0.06249769]
[1735670767669,0.7548,3364.5,3364.1,0.58793905]
[1735670768183,0.7548,3364.5,3364.2,0.06232872]
[1735670768536,0.7548,3364.5,3364.1,0.58793905]
[1735670768749,0.7548,3364.5,3364.3,0.06228648]
[1735670768947,0.7548,3364.5,3364.1,0.58793905]
[1735670769293,2.14914322,3365.1,3364.4,0.06224425]
[1735670769477,0.7548,3365.0,3364.1,0.58793905]
[1735670769798,0.7548,3365.0,3364.5,2.97218]
[1735670769957,2.00160252,3365.3,3364.5,2.97218]
[1735670770154,0.7548,3365.3,3364.6,0.0619618]
[1735670771050,1.24680252,3365.4,3364.8,2.97194]
[1735670771272,1.24680252,3365.4,3365.1,2.97167]
[1735670771616,3.11458926,3365.8,3365.2,3.33012878]
[1735670771617,0.7548,3365.8,3365.2,3.33012878]
[1735670772413,0.7548,3365.8,3365.2,3.268737]
[1735670772615,0.7548,3365.8,3365.3,0.06134957]
[1735670772764,0.7548,3365.8,3365.2,3.268737]
[1735670772955,0.7548,3365.8,3365.4,0.06130736]
[1735670773159,0.7548,3365.8,3365.3,0.38822327]
[1735670773397,0.7548,3365.8,3365.5,0.06126515]
[1735670773599,0.7548,3365.8,3365.3,0.3268737]
[1735670773771,0.7548,3365.8,3365.6,0.06122295]
[1735670773972,0.7548,3365.8,3365.3,0.3268737]
[1735670774184,0.7592,3366.4,3365.7,0.06118075]
[1735670774369,0.7592,3366.4,3365.9,2.97094]
[1735670774370,1.24680252,3366.4,3365.9,2.97094]
[1735670774702,0.27765967,3366.3,3365.9,2.97094]
[1735670774894,0.27765967,3366.3,3366.1,0.7794]
[1735670775081,0.27765967,3366.3,3366.2,2.9707]
[1735670775284,1.24680252,3366.4,3366.3,2.97062]
[1735670775594,2.14914322,3367.6,3366.6,2.97035]
[1735670775595,1.24680252,3367.2,3366.6,2.97035]
[1735670775895,1.24680252,3367.2,3367.1,2.96991]
[1735670776313,1.24680252,3367.2,3367.1,3.02933939]
[1735670776518,1.24680252,3367.2,3367.1,3.33227333]
[1735670777082,1.24680252,3367.2,3367.1,4.11167333]
[1735670777579,0.7592,3368.1,3367.3,2.96965]
[1735670777943,0.7592,3368.1,3367.1,1.14176333]
[1735670778076,0.7592,3368.1,3367.4,0.05805753]
[1735670778278,0.41551457,3368.0,3367.1,0.7794]
[1735670778806,0.41551457,3368.0,3367.2,0.05814185]
[1735670779215,0.7592,3368.1,3367.2,0.05814185]
[1735670782330,0.7592,3368.1,3367.2,3.02796185]
[1735670782892,0.7592,3368.1,3367.2,0.05814185]
[1735670783088,0.7592,3368.1,3367.3,2.96973]
[1735670783342,2.14914322,3368.8,3367.4,0.0565484]
[1735670783504,4.00448129,3369.1,3367.7,0.55]
[1735670783729,0.7592,3368.9,3368.1,2.96902]
[1735670784039,0.7592,3368.9,3367.8,2.14914322]
[1735670784040,0.7592,3368.9,3368.2,3.02514122]
[1735670784230,0.7592,3368.9,3368.2,3.80454122]
[1735670784535,0.7592,3368.9,3368.3,0.38045412]
[1735670784911,0.7592,3368.9,3368.3,0.4366232]
[1735670786333,0.7592,3368.9,3368.3,0.05616908]
[1735670787033,0.7592,3368.9,3368.4,0.05612695]
[1735670787220,0.7592,3368.9,3367.9,3.74852]
[1735670787407,0.7592,3368.9,3368.5,0.05608482]
[1735670787614,0.7592,3368.9,3367.7,3.51936]
[1735670787615,0.7592,3368.9,3367.6,0.55]
[1735670787813,0.7592,3368.9,3368.6,0.05604269]
[1735670788012,0.7592,3368.9,3367.8,2.96929]
[1735670788212,0.7592,3368.9,3368.7,0.05600056]
[1735670788434,0.7592,3368.9,3367.8,2.96929]
[1735670788636,0.7592,3368.9,3368.8,0.05595844]
[1735670788826,1.34684932,3368.9,3367.5,0.7555]
[1735670789026,0.7793,3368.3,3367.2,3.72528]
[1735670789226,0.7793,3368.3,3367.3,2.9697]
[1735670789537,0.7793,3368.3,3367.4,0.37252]
[1735670790036,0.7793,3368.3,3367.4,3.37252]
[1735670791302,0.7793,3368.3,3368.1,0.59801514]
[1735670793243,0.7793,3369.2,3368.2,2.96892]
[1735670793400,0.7793,3369.2,3368.3,0.35669351]
[1735670794515,0.7793,3369.2,3368.1,3.56700514]
[1735670796452,0.7793,3369.2,3368.2,2.9689]
[1735670796767,0.7793,3369.2,3368.3,2.96883]
[1735670797122,0.7793,3369.2,3368.3,3.02440645]
[1735670797763,0.7793,3369.2,3368.3,0.05557645]
[1735670797922,0.7793,3369.6,3368.7,2.9685]
[1735670798123,0.7793,3369.6,3368.9,0.59905405]
[1735670798323,0.7793,3369.6,3368.8,0.42776581]
[1735670798633,0.7793,3369.6,3368.9,0.05491556]
[1735670800026,0.7793,3370.0,3369.1,2.96807]
[1735670800223,0.27619036,3369.9,3369.2,3.27028856]
[1735670800533,0.27619036,3369.9,3369.2,4.08040009]
[1735670800859,0.7793,3370.0,3369.2,4.08040009]
[1735670801166,0.27635861,3369.9,3369.2,4.08040009]
[1735670801327,0.27635861,3369.9,3369.3,0.40804001]
[1735670801859,3.74674,3370.0,3369.4,0.05452731]
[1735670802265,0.276362,3369.8,3368.8,4.0963]
[1735670802487,0.27652606,3369.7,3369.5,0.0544852]
[1735670802707,0.55288806,3369.7,3368.8,1.1279]
[1735670803006,0.276362,3369.7,3369.6,0.0544431]
[1735670803207,0.276362,3369.6,3368.8,1.1279]
[1735670803365,0.276362,3369.6,3368.9,0.409637]
[1735670804006,0.276362,3369.5,3368.9,0.409637]
[1735670804479,0.276362,3369.5,3368.2,0.7708]
[1735670804480,1.096662,3369.4,3368.2,0.7708]
[1735670804677,2.14914322,3369.3,3368.2,0.7708]
[1735670804880,5.39351522,3369.3,3368.2,0.7708]
[1735670805067,0.276362,3369.3,3368.2,0.7708]
[1735670805266,0.27712892,3369.2,3368.5,2.96868]
[1735670805438,0.55349092,3369.2,3368.4,0.55]
[1735670805639,0.55349092,3369.2,3368.6,2.96852]
[1735670805850,0.27712892,3369.1,3368.6,2.96852]
[1735670806052,0.55349092,3369.1,3368.6,2.96852]
[1735670806370,0.276362,3369.1,3368.7,0.651852]
[1735670806578,0.8203,3369.4,3368.7,0.651852]
[1735670807060,0.8203,3369.8,3368.8,0.7708]
[1735670807263,0.27731472,3369.3,3368.8,0.7708]
[1735670807479,0.55462931,3369.3,3368.7,3.620342]
[1735670807686,0.55462931,3369.3,3368.8,0.4391142]
[1735670807891,0.55462931,3369.2,3368.8,0.4391142]
[1735670808098,0.55462931,3369.2,3368.6,0.55]
[1735670808410,0.8203,3369.8,3368.9,2.96829]
[1735670808553,0.8203,3369.8,3368.6,0.55]
[1735670808749,0.8203,3369.8,3369.0,2.96817]
[1735670808953,0.554681,3369.7,3369.0,2.96817]
[1735670809153,0.554681,3369.7,3369.1,0.351817]
[1735670809375,0.27734058,3369.6,3369.1,0.351817]
[1735670810113,0.27734058,3369.5,3369.1,0.351817]
[1735670810471,0.27734058,3369.4,3369.1,0.351817]
[1735670811000,0.27734058,3369.3,3369.1,0.351817]
[1735670811205,0.27734058,3369.3,3369.2,0.3320127]
[1735670811700,0.27734058,3369.3,3369.2,0.38567651]
[1735670812495,0.27734058,3369.3,3369.2,0.05366381]
[1735670812906,0.27734058,3369.3,3368.7,2.96849]
[1735670813100,3.78784,3369.8,3369.2,0.05368355]
[1735670813409,3.78784,3369.8,3369.3,0.05364144]
[1735670813571,0.27771445,3369.7,3369.3,0.05364144]
[1735670813904,0.27771445,3369.7,3369.4,0.05359933]
[1735670814290,0.27771445,3369.6,3368.5,3.73947]
[1735670814490,0.27771445,3369.6,3368.6,0.4113458]
[1735670814796,0.27771445,3369.5,3368.6,0.46528207]
[1735670815204,0.27771445,3369.4,3368.6,0.46528207]
[1735670815964,0.27771445,3369.3,3368.6,0.46528207]
[1735670816164,0.27771445,3369.3,3368.7,0.42047521]
[1735670816387,0.27771445,3369.3,3368.8,0.05385202]
[1735670816588,0.27771445,3369.2,3368.8,0.05385202]
[1735670816772,0.27771445,3369.2,3368.7,0.42047521]
[1735670816979,0.27771445,3369.2,3368.9,0.05386253]
[1735670817267,0.27771445,3369.1,3369.0,0.05383358]
[1735670818460,0.27771445,3369.1,3368.5,3.73945]
[1735670818668,0.27771445,3369.1,3368.6,0.0539626]
[1735670819308,0.27771445,3369.0,3368.6,0.0539626]
[1735670819476,2.9685,3368.7,3368.6,0.0539626]
[1735670819686,2.96874,3368.5,3367.3,0.7777]
[1735670820005,0.7692,3368.6,3367.4,3.02073546]
[1735670820576,3.7378,3368.6,3367.4,3.02073546]
[1735670820783,0.27771445,3368.5,3367.4,0.05110546]
[1735670820979,0.27771445,3368.5,3368.0,2.96908]
[1735670821356,0.27771445,3368.4,3368.1,0.42579768]
[1735670822083,0.27771445,3368.3,3368.1,0.42579768]
[1735670822285,0.27771445,3368.3,3368.1,3.39481768]
[1735670822597,0.27771445,3368.2,3368.1,0.05111968]
[1735670823000,0.27771445,3368.2,3368.1,0.05127764]
[1735670823200,0.27771445,3368.2,3367.8,2.96923]
[1735670823614,0.27771445,3368.2,3367.9,0.05136193]
[1735670823771,0.27771445,3368.1,3367.9,0.60208319]
[1735670823972,0.27771445,3368.1,3368.0,7.34809978]
[1735670824976,2.47378409,3369.1,3368.4,2.96874]
[1735670824977,0.27771445,3368.7,3368.4,2.96874]
[1735670825175,0.27771445,3368.7,3368.5,0.0511091]
[1735670825397,1.24680252,3368.9,3368.6,0.30198491]
[1735670825591,1.24680252,3368.9,3368.5,0.0511091]
[1735670825894,0.27815541,3368.8,3368.6,0.05106697]
[1735670826296,0.27815541,3368.7,3368.1,2.96901]
[1735670826489,0.27815541,3368.7,3368.0,4.37061889]
[1735670826689,0.27815541,3368.7,3368.2,0.0512355]
[1735670826928,0.7692,3368.8,3368.2,0.0512355]
[1735670827099,0.7692,3368.8,3367.9,3.57128319]
[1735670827419,0.7692,3368.8,3368.0,0.43489832]
[1735670827616,0.7692,3368.8,3367.9,0.60208319]
[1735670827823,0.7692,3368.8,3368.0,0.05131978]
[1735670828195,0.27817466,3368.7,3368.0,0.05131978]
[1735670828881,0.27817466,3368.6,3368.0,0.05131978]
[1735670829078,0.27817466,3368.6,3368.5,0.6042296]
[1735670829317,0.27817466,3368.6,3368.5,0.65558877]
[1735670830595,0.7692,3368.8,3368.5,0.65558877]
[1735670830799,0.27790209,3368.7,3368.5,1.01804065]
[1735670831333,1.24680252,3368.9,3368.5,0.65558877]
[1735670831624,0.7692,3368.8,3368.5,0.6042296]
[1735670832214,0.7692,3368.8,3368.6,0.05131704]
[1735670832419,0.27775368,3368.7,3368.6,0.05131704]
[1735670832646,0.27775368,3368.7,3368.5,0.6042296]
[1735670832814,0.27775368,3368.7,3368.6,0.05131704]
[1735670833015,1.24680252,3369.1,3368.6,0.05131704]
[1735670833342,1.24680252,3369.0,3368.6,0.05131704]
[1735670833644,1.52465952,3369.0,3368.5,0.6042296]
[1735670833966,1.52465952,3369.0,3368.6,0.05131704]
[1735670834251,0.277857,3368.9,3368.6,0.4137467]
[1735670834410,0.277857,3368.9,3368.6,0.05131704]
[1735670834615,1.24680252,3369.2,3368.6,0.05131704]
[1735670834837,1.24680252,3369.2,3368.6,3.01990704]
[1735670835060,0.27787327,3369.1,3368.6,3.01990704]
[1735670835628,1.24680252,3369.2,3368.8,0.7998]
[1735670835831,1.02872786,3369.2,3368.9,0.05119067]
[1735670836144,1.02872786,3369.2,3368.8,1.24218166]
[1735670836375,1.02872786,3369.2,3369.0,0.05114855]
[1735670836516,0.27788188,3369.1,3368.9,0.05119067]
[1735670836714,0.27788188,3369.1,3368.9,0.38194607]
[1735670836960,0.27788188,3369.1,3368.9,2.96832]
[1735670837165,1.24680252,3369.3,3368.9,2.96832]
[1735670837340,1.24680252,3369.3,3369.0,0.5821134]
[1735670838554,1.02872786,3369.5,3369.0,0.5821134]
[1735670838718,1.02872786,3369.5,3369.0,1.01713674]
[1735670838919,1.02872786,3369.5,3369.0,3.98536674]
[1735670839147,1.02872786,3369.5,3369.3,2.96789]
[1735670839356,1.02872786,3369.5,3369.0,1.01713674]
[1735670839357,1.02872786,3369.5,3369.4,2.96788]
[1735670839666,1.02872786,3369.5,3369.4,4.694448]
[1735670840370,2.57306527,3369.5,3369.4,4.694448]
[1735670841558,2.57306527,3369.5,3369.4,3.894648]
[1735670841765,0.759,3370.0,3369.4,0.4268532]
[1735670841967,0.759,3370.0,3369.5,2.96779]
[1735670842152,0.759,3370.0,3369.5,3.68723432]
[1735670842359,0.00296,3370.1,3369.6,0.05000098]
[1735670842653,0.00296,3370.1,3369.6,3.01770098]
[1735670843538,0.00296,3370.1,3369.6,0.05000098]
[1735670845242,0.00296,3370.1,3369.7,0.58351255]
[1735670845243,3.36011029,3370.0,3369.7,0.58351255]
[1735670845442,0.27760262,3369.9,3368.9,0.7998]
[1735670845774,0.27760262,3369.9,3369.0,0.04993794]
[1735670845980,0.27760262,3369.9,3369.0,3.01815794]
[1735670846209,0.27760262,3369.9,3369.0,0.04993794]
[1735670846210,0.27760262,3369.8,3369.0,0.04993794]
[1735670846540,1.30678372,3369.8,3369.0,0.04993794]
[1735670847204,1.0291811,3369.8,3369.0,0.04993794]
[1735670847890,1.24680252,3369.9,3369.4,0.6078454]
[1735670848372,1.24680252,3369.9,3369.5,0.04649494]
[1735670848755,0.27757035,3369.8,3369.5,0.04649494]
[1735670849316,1.02906062,3369.9,3369.5,0.04649494]
[1735670850154,1.24680252,3369.9,3369.5,0.04649494]
[1735670850378,0.27756293,3369.8,3369.5,0.04649494]
[1735670850658,1.24680252,3369.9,3369.5,0.40873297]
[1735670850868,1.24680252,3369.9,3369.6,0.8253]
[1735670851074,1.24680252,3370.0,3369.8,2.96753]
[1735670851270,1.24680252,3370.0,3369.9,0.04619508]
[1735670851994,0.00296,3370.1,3369.9,0.04619508]
[1735670852293,0.00296,3370.1,3370.0,0.04615299]
[1735670852630,0.00296,3370.1,3369.6,3.79296]
[1735670852822,0.00296,3370.1,3370.0,0.04615299]
[1735670852992,0.00296,3370.1,3369.6,4.23304054]
[1735670853453,0.00296,3370.1,3369.7,0.04627928]
[1735670856860,0.00296,3370.1,3370.0,0.58126287]
[1735670857048,0.00296,3370.1,3370.0,0.04615299]
[1735670857247,0.00296,3370.1,3369.4,3.74302]
[1735670857450,0.00296,3370.1,3369.5,3.38843548]
[1735670857690,0.00296,3370.1,3369.6,2.96769]
[1735670857895,0.00296,3370.1,3369.7,0.04599011]
[1735670860300,0.00296,3370.1,3369.5,0.374302]
[1735670860593,0.00296,3370.1,3369.6,0.04595335]
[1735670861018,0.00296,3370.1,3369.7,0.7752]
[1735670861297,0.00296,3370.1,3369.8,0.04586915]
[1735670861468,0.00296,3370.1,3369.5,3.74299]
[1735670861662,0.00296,3370.1,3369.6,0.04595335]
[1735670862068,0.7881,3370.0,3369.6,0.04595335]
[1735670863457,0.7881,3370.0,3369.2,2.96803]
[1735670863689,0.27798359,3369.9,3369.7,0.04591125]
[1735670863902,0.27798359,3369.9,3369.2,3.341183]
[1735670864097,0.27798359,3369.9,3369.8,0.04586915]
[1735670864297,0.27798359,3369.9,3369.2,3.341183]
[1735670864493,0.27798359,3369.8,3369.2,3.341183]
[1735670864859,0.7881,3370.0,3369.2,3.341183]
[1735670865395,0.27817347,3369.9,3369.2,3.341183]
[1735670865597,0.27817347,3369.9,3369.2,0.373153]
[1735670865900,0.27817347,3369.9,3369.3,2.96792]
[1735670866225,0.7881,3370.0,3369.1,0.7635]
[1735670866226,0.27817347,3369.8,3369.1,0.7635]
[1735670866378,0.7881,3369.7,3368.7,2.96849]
[1735670866553,0.7881,3369.7,3368.9,2.96826]
[1735670866755,1.40638067,3369.7,3368.9,2.96826]
[1735670867510,0.27817347,3369.6,3368.9,2.96826]
[1735670867999,0.27817347,3369.5,3369.0,3.0]
[1735670868363,0.27817347,3369.5,3369.4,3.0]
[1735670868559,2.03490252,3370.0,3369.4,3.0]
[1735670869020,0.27833176,3369.9,3369.4,3.0]
[1735670869299,0.27833176,3369.8,3369.2,0.7635]
[1735670869462,0.27833176,3369.8,3369.2,3.7635]
[1735670869864,0.27833176,3369.7,3369.2,3.7635]
[1735670870378,0.27833176,3369.7,3368.9,3.7635]
[1735670870682,0.27833176,3369.6,3369.0,2.96817]
[1735670870881,0.27833176,3369.6,3368.9,1.733536]
[1735670871310,0.27833176,3369.5,3368.9,1.733536]
[1735670871675,0.27833176,3369.5,3369.0,0.04666605]
[1735670872027,3.75601,3369.4,3369.0,0.04666605]
[1735670872331,0.7881,3369.2,3368.3,3.73234]
[1735670872621,0.7881,3369.2,3369.1,0.04662394]
[1735670872782,5.39563158,3369.1,3368.0,4.83283996]
[1735670872983,0.7881,3369.0,3368.2,4.21147997]
[1735670873325,0.7881,3369.0,3368.3,0.0472962]
[1735670873326,0.27830836,3368.9,3368.3,0.0472962]
[1735670873823,0.7881,3368.7,3367.9,0.7635]
[1735670874004,0.7881,3368.7,3367.9,3.73268]
[1735670874204,0.7881,3368.7,3368.0,5.9691]
[1735670874445,0.27830836,3368.6,3368.0,6.81415497]
[1735670874612,0.7881,3368.7,3368.0,6.81415497]
[1735670876825,1.24680252,3369.0,3368.1,1.3135]
[1735670877022,1.24680252,3369.0,3368.9,2.96832]
[1735670877330,1.24680252,3369.0,3368.9,3.82646069]
[1735670877531,1.24680252,3369.0,3368.9,4.20910676]
[1735670877829,1.24680252,3369.3,3369.1,2.96814]
[1735670878179,1.24680252,3369.3,3368.9,4.20906676]
[1735670878425,1.24680252,3369.3,3369.2,0.04711434]
[1735670878721,0.8208,3369.6,3369.2,0.04711434]
[1735670878912,0.8208,3369.6,3368.9,4.16182607]
[1735670879112,0.8208,3369.6,3369.3,0.04707223]
[1735670879432,0.8208,3369.6,3368.9,4.16182607]
[1735670879784,0.8208,3369.6,3369.4,0.04703012]
[1735670879990,0.8208,3369.6,3368.8,3.0]
[1735670880390,0.8208,3369.6,3368.9,0.04724069]
[1735670881185,0.8208,3369.6,3369.0,2.96821]
[1735670881391,0.8208,3369.6,3368.8,2.96833]
[1735670881614,0.8208,3369.6,3369.1,0.04715646]
[1735670881819,0.8208,3369.6,3368.8,2.96833]
[1735670882218,0.8208,3369.6,3368.7,3.0]
[1735670882408,0.8208,3369.6,3368.9,0.04737873]
[1735670882737,0.8208,3369.6,3369.0,0.04733661]
[1735670883101,0.8208,3369.6,3368.7,3.0]
[1735670883305,0.8208,3369.6,3369.1,0.04729449]
[1735670883508,0.8208,3369.6,3368.9,2.96825]
[1735670883704,0.8208,3369.6,3369.2,0.04725238]
[1735670883921,0.8208,3369.6,3368.9,2.96825]
[1735670884094,0.8208,3369.6,3369.4,0.59183885]
[1735670884535,0.8208,3369.6,3369.5,0.04712605]
[1735670885514,1.09856249,3369.6,3369.5,0.04712605]
[1735670886526,2.12781395,3369.6,3369.5,0.04712605]
[1735670886712,2.12781395,3369.6,3369.4,0.59183885]
[1735670887041,1.85005146,3369.6,3369.4,0.59183885]
[1735670887220,1.02925146,3369.6,3369.4,0.59183885]
[1735670888531,2.27605398,3369.7,3369.4,0.59183885]
[1735670888719,2.27605398,3369.7,3369.0,2.96823]
[1735670888961,0.27783139,3369.6,3369.5,0.04712605]
[1735670889238,0.27783139,3369.6,3368.8,3.34948]
[1735670890033,0.22783139,3369.5,3368.9,0.04737873]
[1735670890615,1.24680252,3369.7,3368.9,0.7681546]
[1735670890803,1.24680252,3369.7,3368.9,3.7364646]
[1735670891126,1.24680252,3369.7,3369.0,2.96822]
[1735670891330,1.24680252,3369.7,3369.0,3.01555661]
[1735670892126,2.27612763,3369.7,3369.0,3.01555661]
[1735670892318,2.27612763,3369.7,3369.0,3.42729886]
[1735670893345,1.24680252,3369.7,3369.0,3.42729886]
[1735670893746,1.24680252,3369.7,3369.1,0.817]
[1735670893944,1.24680252,3369.7,3369.5,2.96777]
[1735670894183,1.24680252,3369.7,3369.6,3.78471]
[1735670894372,1.24680252,3369.7,3369.6,4.20990991]
[1735670894521,2.27612763,3369.7,3369.6,4.20990991]
[1735670895628,2.27612763,3369.7,3369.6,1.24219991]
[1735670895917,2.27612763,3369.7,3369.6,0.86372891]
[1735670896266,0.00296,3370.1,3369.6,0.86372891]
[1735670900325,0.00296,3370.1,3369.7,2.96759]
[1735670900527,0.00296,3370.1,3369.7,3.01390218]
[1735670900743,0.00296,3370.1,3369.7,0.04631218]
[1735670901267,0.00296,3370.1,3369.7,0.4294204]
[1735670902666,0.00296,3370.1,3369.9,2.96743]
[1735670903040,0.00296,3370.1,3370.0,0.04618589]
[1735670904241,0.00296,3370.1,3370.0,3.83053589]
[1735670905527,0.00296,3370.1,3370.0,6.83053589]
[1735670905742,0.00296,3370.1,3370.0,7.5519003]
[1735670908336,0.00296,3370.1,3370.0,8.1019003]
[1735670908685,0.00296,3370.1,3370.0,10.25104352]
[1735670908883,0.00296,3370.1,3370.0,10.84503518]
[1735670909988,0.00296,3370.1,3370.0,8.69589196]
[1735670910354,0.00296,3370.1,3370.0,10.84503518]
[1735670914347,1e-05,3370.1,3370.0,15.39203518]
[1735670914868,0.1697844,3371.5,3371.4,3.71962]
[1735670915052,0.1697844,3371.5,3371.4,4.091582]
[1735670915382,0.1697844,3371.5,3371.4,4.1354576]
[1735670915884,0.1697844,3371.5,3371.4,7.6854576]
[1735670916288,0.69855683,3372.3,3371.6,3.71945]
[1735670916498,0.69855683,3372.3,3372.2,0.7535]
[1735670917079,0.69855683,3372.3,3372.2,0.0432832]
[1735670917854,0.69855683,3372.3,3372.2,3.0087032]
[1735670918068,0.7533,3372.9,3372.2,3.0087032]
[1735670919488,0.7533,3372.9,3372.3,2.96526]
[1735670919686,0.7533,3372.9,3372.3,3.30743858]
[1735670919849,0.7533,3372.9,3372.3,0.34217858]
[1735670920051,0.7533,3372.9,3372.3,0.04132426]
[1735670921583,0.7533,3373.3,3372.4,0.7535]
[1735670922093,0.7533,3373.3,3372.5,0.04124019]
[1735670922244,0.7533,3373.3,3372.8,0.6001189]
[1735670922449,3.77164,3373.1,3372.9,0.04107209]
[1735670922753,0.59207832,3373.0,3372.6,0.58424494]
[1735670923165,0.59207832,3373.0,3372.7,0.04115614]
[1735670924282,0.807,3373.1,3372.7,0.04115614]
[1735670924481,2.96472,3373.0,3372.7,0.04115614]
[1735670924989,3.77163,3373.1,3372.6,0.58424494]
[1735670925308,0.807,3373.1,3372.7,0.04107741]
[1735670926268,3.77163,3373.1,3372.7,0.04107741]
[1735670926468,1.41454721,3373.1,3372.7,0.04107741]
[1735670927401,2.96471,3373.0,3372.7,0.04107741]
[1735670927739,0.807,3372.8,3371.5,0.7749]
[1735670928036,0.807,3372.4,3372.0,0.58259468]
[1735670928402,2.96534,3372.3,3372.1,0.04005999]
[1735670928607,3.55748832,3372.3,3372.1,0.04005999]
[1735670928798,2.96544,3372.2,3371.3,0.7749]
[1735670929023,2.96544,3372.2,3371.9,0.60352053]
[1735670929226,2.96551,3372.1,3371.9,0.60352053]
[1735670929544,3.77263,3372.0,3371.0,0.7749]
[1735670929836,2.96583,3371.8,3370.7,3.7749]
[1735670929999,2.74132054,3371.9,3370.7,0.7749]
[1735670930000,2.96595,3371.6,3370.7,0.7749]
[1735670930195,2.96614,3371.4,3371.2,0.60833585]
[1735670930412,0.807,3371.3,3370.5,3.0]
[1735670930627,0.807,3371.3,3370.4,3.74187]
[1735670930846,0.807,3371.3,3370.5,0.374187]
[1735670931052,0.807,3371.3,3370.5,3.374187]
[1735670931255,0.807,3371.3,3371.1,0.58075178]
[1735670931420,0.807,3371.3,3370.4,0.7749]
[1735670931625,3.77322,3371.3,3370.4,0.7749]
[1735670931823,3.77322,3371.3,3370.5,0.03991808]
[1735670932253,3.77322,3371.3,3370.9,0.59436547]
[1735670932429,4.36545632,3371.3,3370.9,0.59436547]
[1735670932629,4.36545632,3371.3,3371.0,0.03970771]
[1735670933310,1.39923632,3371.3,3371.0,0.03970771]
[1735670933511,0.807,3371.3,3371.0,0.03970771]
[1735670933751,0.807,3371.3,3370.1,0.7749]
[1735670933955,0.807,3371.7,3370.8,0.55]
[1735670934154,0.807,3371.7,3370.8,0.58595945]
[1735670934315,0.807,3371.7,3370.9,0.03974978]
[1735670934657,0.807,3371.7,3371.0,2.96646]
[1735670934843,0.807,3371.7,3370.9,0.03974978]
[1735670935021,0.807,3371.7,3371.1,0.03966564]
[1735670935216,0.807,3371.7,3371.0,0.03970771]
[1735670935417,0.807,3371.7,3371.2,0.03962358]
[1735670935645,0.807,3371.7,3371.1,0.03966564]
[1735670935845,0.807,3371.7,3371.3,0.03958152]
[1735670936043,0.807,3371.7,3371.2,0.03962358]
[1735670936248,0.807,3371.7,3370.9,2.96654]
[1735670936441,0.807,3371.7,3371.3,0.03958152]
[1735670936644,0.807,3371.7,3371.4,0.60683559]
[1735670936958,0.807,3371.7,3371.5,0.0394974]
[1735670937154,0.807,3371.7,3370.7,0.7749]
[1735670937451,0.807,3371.7,3370.8,2.96664]
[1735670937659,0.807,3371.7,3370.9,0.374154]
[1735670938035,0.807,3371.7,3371.0,0.03970771]
[1735670938430,0.807,3371.7,3371.3,0.58465097]
[1735670938843,0.807,3371.7,3371.4,0.03953946]
[1735670939025,0.807,3371.7,3371.3,0.58465097]
[1735670939346,1.184284,3371.7,3371.3,0.58465097]
[1735670939532,2.96598,3371.6,3371.3,0.58465097]
[1735670939734,3.24301017,3371.6,3371.4,0.03953946]
[1735670940058,0.27703017,3371.6,3371.3,0.58465097]